Cogmind - Beta 15 @@@ ROGUE MODE // 2025.07.27 @ 16:05:47 Player: Waste Result: Destroyed by RB-TOO(R) with Subdweller Machine Gun Performance ------------- Evolutions (0) 0 Regions Visited (2) 400 Robots Destroyed (11) 55 Value Destroyed (427) 427 Prototype IDs (11) 220 Alien Tech Used (0) 0 Bonus (0) 0 TOTAL SCORE: 1102 Bonus ------- None Cogmind --------- Core Integrity 0/250 Matter 290/300 Energy 256/265 System Corruption 0% Temperature Cool (0) Movement Treading (240) Ox1 Location -10/Subcaves Parts ------- > --- POWER (1) -------- Improved Ion Engine > --- PROPULSION (2) --- Light Treads Light Treads > --- UTILITY (2) ------ Heat Sink High-capacity Storage Unit > --- WEAPON (2) ------- Medium Laser Light Assault Rifle > --- INVENTORY (20) --- Ion Engine Ion Engine Subdweller Power Source Aluminum Leg Wheel Compact Wheel Subdweller Monowheel Subdweller Monowheel Subdweller Monowheel Large Storage Unit Signal Interpreter Tower Shield Light Assault Rifle Grenade Launcher Peak State ------------ > --- POWER ------------ Improved Ion Engine > --- PROPULSION ------- Light Treads Light Treads > --- UTILITY ---------- Heat Sink High-capacity Storage Unit > --- WEAPON ----------- Subdweller Laser Subdweller Laser > --- INVENTORY -------- Ion Engine Ion Engine Subdweller Power Source Aluminum Leg Wheel Compact Wheel Subdweller Monowheel Subdweller Monowheel Small Storage Unit Large Storage Unit Signal Interpreter Tower Shield Tractor Beam Medium Laser Small Laser Light Assault Rifle Light Assault Rifle Light Assault Rifle Grenade Launcher [Rating: 14] Favorites ----------- Power Ion Engine Engine Ion Engine Propulsion Aluminum Leg Treads Light Treads Leg Aluminum Leg Utility Heat Sink Device Heat Sink Storage High-capacity Storage Unit Weapon Light Assault Rifle Energy Gun Medium Laser Ballistic Gun Light Assault Rifle Launcher Grenade Launcher Build | -11 -10 -10 ------- Run | Yrd Mat Sub Slots Evolved . | . . . Power . | . . . Propulsion . | . . . Utility . | . . . Weapon . | . . . Parts Attached 12 | . 3 9 Power 1 | . . 1 Engine 1 | . . 1 Core . | . . . Reactor . | . . . Propulsion 2 | . . 2 Treads 2 | . . 2 Leg . | . . . Wheel . | . . . Hover . | . . . Flight . | . . . Utility 3 | . 3 . Device 1 | . 1 . Storage 2 | . 2 . Processor . | . . . Hackware . | . . . Protection . | . . . Artifact . | . . . Weapon 6 | . . 6 Energy Gun 3 | . . 3 Energy Cannon . | . . . Ballistic Gun 2 | . . 2 Ballistic Cannon . | . . . Launcher 1 | . . 1 Special Weapon . | . . . Impact Weapon . | . . . Slashing Weapon . | . . . Piercing Weapon . | . . . Special Melee Weapon . | . . . Unidentified Prototypes . | . . . Parts Lost 5 | . . 5 Power . | . . . Propulsion 2 | . . 2 Utility . | . . . Weapon 3 | . . 3 Highest Loss Streak 2 | . . 2 To Critical Strikes . | . . . Average Backups 14 | . 10 15 Power 1 | . 1 1 Propulsion 5 | . 4 5 Utility 4 | . 1 4 Weapon 3 | . 3 4 Tool/Special . | . . . Unused Backups 21 | . 5 16 Power 3 | . 1 2 Propulsion 10 | . 2 8 Utility 4 | . . 4 Weapon 4 | . 2 2 Tool/Special . | . . . Average Slot Usage (%) 99 | . 96 100 Engine 14 | . 14 14 Treads 3 | . . 4 Leg 24 | . 28 23 Device 13 | . 10 14 Storage 14 | . 14 14 Energy Gun 9 | . . 11 Ballistic Gun 17 | . 28 15 Peak Build Rating 14 | . 8 14 Average Rating 9 | . 7 10 On Entrance 6 | 6 6 8 Naked Turns . | . . . Heaviest Build 56 | 12 48 56 Greatest Support 40 | 20 20 40 Greatest Overweight (x) 2 | . 2 2 Average Overweight (x) 1 | . 1 1 Largest Inventory Capacity 20 | . 20 20 Average Capacity 19 | . 16 20 Most Carried 20 | . 14 20 Average Carried 15 | . 11 16 Final Capacity 20 | 8 20 20 Final Carried 15 | 6 14 15 Class Distribution -------------------- 98% | Mutant Dominant Class ---------------- Mutant | -10/Materials Mutant | -10/Subcaves Resources | -11 -10 -10 ----------- Run | Yrd Mat Sub Matter Collected 476 | 200 64 212 Remotely . | . . . Salvage Created 414 | . 115 299 Parts 20 | . 4 16 Haulers Intercepted . | . . . Recyclers Shooed . | . . . Parts Field Recycled . | . . . Retrieved Matter . | . . . Parts Self-Destructed 1 | . . 1 Prevented . | . . . Kills | -11 -10 -10 ------- Run | Yrd Mat Sub Combat Hostiles Destroyed 11 | . 3 8 Guns 9 | . 3 6 AOE 2 | . . 2 Classes Destroyed 3 | . 1 2 Grunt 3 | . 3 . Sentry 1 | . . 1 Subdweller 7 | . . 7 Best Kill Streak 2 | . 2 2 Combat Bots Only 2 | . 2 2 Max Kills in Single Turn 1 | . 1 1 Gunslinging . | . . . Exploded 1 | . . 1 Melee . | . . . Uniques/NPCs Destroyed . | . . . Combat | -11 -10 -10 -------- Run | Yrd Mat Sub Hostile Shots Fired 64 | . 12 52 Missed 16 | . 2 14 Hits 48 | . 10 38 Projectile 48 | . 10 38 Critical Strikes 1 | . . 1 Damage Taken 1037 | . 114 923 Core 251 | . 12 239 Absorbed by Shields . | . . . Core Remaining (%) 100 | 100 . . Volleys Fired 57 | . 17 40 Largest 2 | . 2 2 Hottest 120 | . 40 120 Shots Fired 106 | . 34 72 Gun 99 | . 34 65 Cannon . | . . . Launcher 7 | . . 7 Special . | . . . Kinetic 60 | . 34 26 Thermal 39 | . . 39 Explosive 7 | . . 7 Electromagnetic . | . . . Robot Hit Streak 33 | . 5 33 Robot Miss Streak 2 | . 2 1 Penetration Max . | . . . Secondary Targets . | . . . Shots Hit Robots 86 | . 23 63 Core Hits 28 | . 8 20 Critical Kills 1 | . 1 . Critical Parts Destroyed . | . . . Critical Strikes 1 | . 1 . Destroy 1 | . 1 . Melee Attacks . | . . . Impact . | . . . Slashing . | . . . Piercing . | . . . Sneak Attacks . | . . . Combat Hostiles . | . . . Follow-up Attacks . | . . . Damage Inflicted 1256 | . 193 1063 Guns 963 | . 193 770 Cannons . | . . . Explosions 293 | . . 293 Melee . | . . . Ramming . | . . . Kinetic 348 | . 193 155 Thermal 615 | . . 615 Explosive 293 | . . 293 Electromagnetic . | . . . Impact . | . . . Slashing . | . . . Piercing . | . . . Highest Corruption . | . . . Average Corruption . | . . . Corruption Purged . | . . . Corruption Blocked . | . . . Overload Shots . | . . . Overflow Damage . | . . . Projectiles . | . . . Explosions . | . . . Melee . | . . . Knockbacks . | . . . Impact . | . . . Kinetic . | . . . Secondary . | . . . Self-Inflicted Damage 16 | . . 16 Shots 1 | . . 1 Rammed . | . . . Targets Rammed . | . . . Kicked . | . . . Crushed . | . . . Highest Temperature 12 | . 12 . Average Temperature 6 | . 6 . Received Heat Transfer 231 | . 60 171 Siege Activations . | . . . Martial Activations . | . . . Shielding Activations . | . . . Robots Disrupted . | . . . Combat Hostiles . | . . . Robots Corrupted . | . . . Combat Hostiles . | . . . Parts Fried . | . . . Impact Corruptions . | . . . Robots Melted . | . . . Combat Hostiles . | . . . Parts Melted . | . . . Heat Transferred 1080 | . . 1080 Parts Sabotaged . | . . . Parts Stolen . | . . . Parts Stripped . | . . . Power Chain Reactions . | . . . Alert | -11 -10 -10 ------- Run | Yrd Mat Sub Maximum Alert Level . | . . . Low Security (%) 100 | . 100 . Level 1 . | . . . Level 2 . | . . . Level 3 . | . . . Level 4 . | . . . Level 5 . | . . . High Security . | . . . Max Security . | . . . Peak Influence 50 | . 50 . Initial . | . . . Average 10 | . 10 . Influence Increases 100 | . 80 20 Destroy 0b10 Robot/C 80 | . 60 20 Destroy Leader 20 | . 20 . Influence Decreases 100 | . 80 20 Time Decay 100 | . 80 20 Squads Dispatched 2 | . 2 . Investigation . | . . . Extermination . | . . . Reinforcement 2 | . 2 . Assault . | . . . Garrison . | . . . Intercept . | . . . Searches Triggered . | . . . Construction Impeded . | . . . Haulers Reinforced . | . . . Active Scanning Responses . | . . . Cargo Convoy Interrupts . | . . . Stealth | -11 -10 -10 --------- Run | Yrd Mat Sub Distress Signals . | . . . Communications Jammed . | . . . Distress Signals . | . . . Times Spotted 17 | . 6 11 Peak Tracking Total 3 | . 2 3 Tactical Retreats . | . . . Traps | -11 -10 -10 ------- Run | Yrd Mat Sub Traps Triggered 2 | . . 2 Indirectly . | . . . Trap Hack Attempts . | . . . Triggered . | . . . Disarmed . | . . . Reprogrammed . | . . . Reused . | . . . Traps Extracted . | . . . Installed . | . . . Triggered . | . . . Machines | -11 -10 -10 ---------- Run | Yrd Mat Sub Machines Disabled 2 | . . 2 Max in Single Turn 2 | . . 2 Machines Repaired . | . . . Machines Dismantled . | . . . Machines Sabotaged . | . . . Overloaded Fab Kills . | . . . Hacking | -11 -10 -10 --------- Run | Yrd Mat Sub Machines Accessed 2 | . . 2 Terminals . | . . . Fabricators . | . . . Repair Stations . | . . . Recycling Units . | . . . Scanalyzers . | . . . Garrison Access . | . . . Total Hacks 5 | . . 5 Successful 5 | . . 5 Failed . | . . . Catastrophic . | . . . Database Lockouts . | . . . Manual . | . . . Terminals . | . . . Fabricators . | . . . Repair Stations . | . . . Recycling Units . | . . . Scanalyzers . | . . . Garrison Access . | . . . Terminal Hacks 5 | . . 5 Record 4 | . . 4 Proto ID Catalog 1 | . . 1 Fabricator Hacks . | . . . Repair Station Hacks . | . . . Recycling Unit Hacks . | . . . Scanalyzer . | . . . Garrison Access Hacks . | . . . Unauthorized Hacks . | . . . Terminals . | . . . Fabricators . | . . . Repair Stations . | . . . Recycling Units . | . . . Scanalyzers . | . . . Garrison Access . | . . . Data Cores Recovered . | . . . Used . | . . . Hacking Detections . | . . . Full Trace Events . | . . . Feedback Events . | . . . Feedback Blocked . | . . . Robot Schematics Acquired . | . . . Robots Built . | . . . Authchips . | . . . Time . | . . . Total Robot Build Rating . | . . . Part Schematics Acquired . | . . . Parts Built . | . . . Authchips . | . . . Time . | . . . Total Part Build Rating . | . . . Parts Repaired . | . . . Time . | . . . Parts Recycled . | . . . Recycled Matter . | . . . Retrieved Matter . | . . . Retrieved Components . | . . . Parts Scanalyzed . | . . . Part Schematics Acquired . | . . . Parts Damaged . | . . . Bothacking | -11 -10 -10 ------------ Run | Yrd Mat Sub Used RIF Installer . | . . . Robots Hacked . | . . . Non-combat . | . . . Combat . | . . . Robot Hacks Applied . | . . . Relay Couplers Released . | . . . Fabnet Peak Effective % . | . . . Robots Rewired . | . . . Allies Hacked . | . . . Hacks Repelled . | . . . Allies | -11 -10 -10 -------- Run | Yrd Mat Sub Total Allies . | . . . Largest Group . | . . . Highest-Rated Group . | . . . Highest-Rated Ally . | . . . Total Orders . | . . . Ally Attacks . | . . . Total Damage . | . . . Kills . | . . . Allies Corrupted . | . . . Allies Melted . | . . . Intel | -11 -10 -10 ------- Run | Yrd Mat Sub Active Infowar (turns) . | . . . Robot Analysis Total . | . . . Derelict Logs Recovered . | . . . Drone Launches . | . . . Drone Recoveries . | . . . Exploration | -11 -10 -10 ------------- Run | Yrd Mat Sub Turns Passed 1997 | . 371 1626 Spaces Moved 720 | 1 147 572 Core . | . . . Treads 66 | . . 66 Legs 654 | 1 147 506 Wheels . | . . . Hover . | . . . Flight . | . . . Fastest Speed 120 | 120 120 240 Average Speed 245 | 120 199 257 Slowest Speed 260 | 120 260 260 Overloaded Moves . | . . . Propulsion Burnouts . | . . . Robots Hopped . | . . . Potential Cave-ins . | . . . Cave-ins Triggered . | . . . Exploration Rate (%) 21 | 2 26 35 Regions Visited 2 Branch Regions 1 Pre-discovered Areas 1 | . . 1 Known Exits Taken . | . . . Unknown Exits Taken 2 | 1 1 . Scrap Searched 1 | . . 1 Spaces Dug . | . . . Terrain Destroyed 22 | . . 22 Melee . | . . . Projectile . | . . . AOE 22 | . . 22 Terrain Rammed . | . . . Walls Destroyed . | . . . Machines Disabled . | . . . Actions | -11 -10 -10 --------- Run | Yrd Mat Sub Total 852 | . 198 654 Wait 42 | . 25 17 Move 718 | . 146 572 Hop . | . . . Pick Up 14 | . 6 8 Fast Attach 2 | . 2 . Attach 5 | . . 5 Detach 1 | . 1 . Swap 9 | . 1 8 Drop 4 | . . 4 Fire 57 | . 17 40 Melee . | . . . Ram . | . . . Kick . | . . . Crush . | . . . Escape Stasis . | . . . Rewire . | . . . Trap . | . . . Miscellaneous . | . . . Route ------- -11/Scrapyard -10/Materials (discovered 3 exits: [*Mat] / [*Min] / *Sub) -10/Subcaves (discovered 1 exit: [*Mat]) History --------- Turn | Location | Event 1 | -11/Scrapyard | Discovered new exit (range 0) 1 | -11/Scrapyard | Entered Materials 130 | -10/Materials | Discovered new exit (range 6) 216 | -10/Materials | Discovered new exit (range 5) 308 | -10/Materials | Build established: Mutant 353 | -10/Materials | Discovered new exit (range 5) 372 | -10/Materials | Entered Subcaves 373 | -10/Subcaves | Approached by a straggling Scientist 596 | -10/Subcaves | Visited 4L-MR0's lab 631 | -10/Subcaves | Found Tower Shield 1025 | -10/Subcaves | Visited Clippyterm 1033 | -10/Subcaves | Learned location of Deep Caves (-6) 1033 | -10/Subcaves | Learned Factory stockpile data 1504 | -10/Subcaves | Discovered new exit (range 9) 1714 | -10/Subcaves | Shifting Twisted Machinery released Sub. Monowheel 1764 | -10/Subcaves | Core integrity fell below 50% 1970 | -10/Subcaves | A Subdweller sparked back to life 1993 | -10/Subcaves | Core integrity fell below 20% 1998 | -10/Subcaves | Destroyed by RB-TOO(R) with Subdweller Machine Gun Last Messages --------------- 01795_ Acquired Sub. Laser. 01801_ Acquired Sub. Power Source. 01803_ Subatomizers dissect the Sub. Optics. 01806_ Acquired Sub. Monowheel. 01818_ Subatomizers dissect the Sub. Optics. 01854_ OZ-3XS(R) destroyed. 01862_ Acquired 10 matter. 01867_ Dropped Sub. Monowheel. 01867_ Acquired Sub. Monowheel. 01870_ Dropped Sml. Storage Unit. 01870_ Dropped Tractor Beam. 01871_ Dropped Sml. Laser. 01871_ Acquired Sub. Monowheel. 01881_ Sub. Laser destroyed. 01900_ 8N-QE3(R) destroyed. 01905_ Acquired 26 matter. 01912_ Subatomizers dissect the Disposable Heat Sink. 01970_ BV-95Q(R) creaks and sparks as it begins to move. 01977_ Subatomizers dissect the Sub. Monowheel. 01994_ Lgt. Assault Rifle destroyed. Map ----- +----------------------------------------------------+ | ?????????#"###""" ##""## #???????????????? | | ???????### "##""^ " #???????????????? | | ????#?##"" ##& ## # #???????????????? | | "####"# ""#= ## #####???????????????? | | """" & %^& #####??????????????? | | """" ! & ^ #??????????????? | | #"### # " ^ #?????????????? | | ????#?##" ### #######?????????????? | | ????#??#### ##?## ##??????????????????? | | ???"" ???# ##?## ##?????????????????? | | ????" ??# ##??# ####??????????????? | | ????"" ###???# ##?????????????? | | ????"" ###??#! #?????????????? | | ??? "" ###%!! #?????????????? | | ??? "" #! [* #?????????????? | | ??? "" ####%= ##?????????????? | | ??? "" ######??#& #??????????????? | | ?????"" ???????????# ##??????????????? | | ??????????????###### % #???????????????? | | ??????????????# ## ##???????????????? | | ???????? #????????????????? | | ???????? # # ####?????????????? | | ????????? ???## #?????????????? | | ?????? ??????# ##?????????????? | | ?????? ???## #??????????????? | | ????? ### @#??????????????? | | ????? ##??????????????? | | ????? RR##???????????????? | | ????? # # &% ##???????????????? | | ?????? ?#### ##??????????????? | | ?????? ?????#### #??????????????? | | ???????# ?????????# #??????????????? | | ????????? ???????????## #??????????????? | | ?????????????????????## #??????????????? | | ?????????????????????# ##??????????????? | | ?????????????????????## #??????????????? | | ??????????????????????# ##??????????????? | | ??????????????????????## #???????????????? | | ???????????????????????& ???????????????? | | ??????????????????????? ???????????????? | | ??????????????????????? #??????????????? | | ??????????????????????? "" ??????????????? | | ??????????????????????? ??????????????? | | ??????????????????????? "&#??????????????? | | ?????????????????????? ####??????????????? | | ??????????????????????#??????????????????? | | ?????????????????????????????????????????? | | ?????????????????????????????????????????? | | ?????????????????????????????????????????? | | ?????????????????????????????????????????? | +----------------------------------------------------+ Best States ------------- Heat Dissipation 35 Energy Generation 12 Energy Capacity 265 Matter Stores 300 Matter Capacity 300 Sight Range 16 Terrain Scan Density 10 Evasion (%) 50 Recoil Reduction 2 Item Schematics ----------------- None Robot Schematics ------------------ None Fabricated ------------ Nothing Repaired ---------- Nothing Alien Tech Used ----------------- None Achievements -------------- None Challenges ------------ None Game ------ Seed ShrapnelPropulsionMallet Manual? 0 Play Time 00:10:05 Cumulative 403.8 hours Start 2025.07.27 @ 16:00:02 End 2025.07.27 @ 16:05:47 Sessions 1 Manual Loads 0 Difficulty Rogue Special Mode None Game No. 509 Rogue 509 Adventurer 0 Explorer 0 Win Type - Total 32 Types 16/1/9/1/1/1/0/1/1/1 Lore% 87 Gallery% 80 Achievement% 77 Wizard Run 0 Options --------- Layout 0 ASCII 0 Keyboard 0 Movement Numpad Keybinds 0 Fullscreen 1 Font 18/SmallcapsGlow Map View 76x50 Zoom Use 0% Tactical HUD 1 Map Filters NONE Filters NONE Steam 1 RUN: 811be505-c27b-449f-9995-fa365e4a541f